[Event "*** Titled Tuesday Blitz"]
[Site "Chess.com"]
[Date "2020.12.29"]
[Round "1"]
[White "GMBenjaminBok"]
[Black "esskeettit"]
[Result "1-0"]
[WhiteElo "2880"]
[BlackElo "2449"]
[TimeControl "180+1"]
[EndTime "10:08:44 PST"]
[Termination "GMBenjaminBok won on time"]

1. d4 {[%clk 0:03:00.9]} 1... Nf6 {[%clk 0:02:56.3]} 2. c4 {[%clk 0:03:00.2]}
2... e6 {[%clk 0:02:56.5]} 3. Nf3 {[%clk 0:02:57.4]} 3... d5 {[%clk 0:02:54.6]}
4. Nc3 {[%clk 0:02:56.9]} 4... Be7 {[%clk 0:02:54]} 5. Bf4 {[%clk 0:02:54.2]}
5... O-O {[%clk 0:02:46.8]} 6. e3 {[%clk 0:02:54]} 6... c5 {[%clk 0:02:45.4]} 7.
dxc5 {[%clk 0:02:47.2]} 7... Bxc5 {[%clk 0:02:27.8]} 8. Qc2 {[%clk 0:02:42.3]}
8... dxc4 {[%clk 0:02:08]} 9. Bxc4 {[%clk 0:02:40.5]} 9... Nbd7 {[%clk
0:01:55.2]} 10. O-O {[%clk 0:02:35.2]} 10... b6 {[%clk 0:01:54.9]} 11. Rfd1
{[%clk 0:02:12.5]} 11... Qe7 {[%clk 0:01:45.4]} 12. a3 {[%clk 0:01:46.1]} 12...
a5 {[%clk 0:01:39.6]} 13. Na4 {[%clk 0:01:36.5]} 13... e5 {[%clk 0:01:28.8]} 14.
Bg5 {[%clk 0:00:32]} 14... Bb7 {[%clk 0:01:27.8]} 15. Qf5 {[%clk 0:00:27.2]}
15... e4 {[%clk 0:00:32]} 16. Nd4 {[%clk 0:00:17.8]} 16... Qe5 {[%clk
0:00:27.4]} 17. Nxc5 {[%clk 0:00:15.8]} 17... bxc5 {[%clk 0:00:22.2]} 18. Qxe5
{[%clk 0:00:15]} 18... Nxe5 {[%clk 0:00:21.8]} 19. Bxf6 {[%clk 0:00:13.5]} 19...
gxf6 {[%clk 0:00:15.3]} 20. Nb3 {[%clk 0:00:10.2]} 20... Nxc4 {[%clk 0:00:15.2]}
21. Nxc5 {[%clk 0:00:10.6]} 21... Ba6 {[%clk 0:00:12.7]} 22. b3 {[%clk
0:00:08.3]} 22... Ne5 {[%clk 0:00:12.8]} 23. Nxe4 {[%clk 0:00:06.2]} 23... Kg7
{[%clk 0:00:12.1]} 24. Rd6 {[%clk 0:00:06.3]} 24... Rfd8 {[%clk 0:00:10.8]} 25.
Rxf6 {[%clk 0:00:04.3]} 25... Bd3 {[%clk 0:00:09.5]} 26. Rf4 {[%clk 0:00:04.4]}
26... Bxe4 {[%clk 0:00:08.3]} 27. Rxe4 {[%clk 0:00:04.6]} 27... f6 {[%clk
0:00:08.9]} 28. h3 {[%clk 0:00:03.6]} 28... Rd2 {[%clk 0:00:08.7]} 29. Rc1
{[%clk 0:00:03]} 29... Rad8 {[%clk 0:00:08.1]} 30. Rc7+ {[%clk 0:00:02.8]} 30...
R8d7 {[%clk 0:00:07]} 31. Rxd7+ {[%clk 0:00:02.5]} 31... Rxd7 {[%clk 0:00:07.9]}
32. b4 {[%clk 0:00:02.8]} 32... axb4 {[%clk 0:00:07.6]} 33. Rxb4 {[%clk
0:00:02.9]} 33... Rd1+ {[%clk 0:00:07.2]} 34. Kh2 {[%clk 0:00:03.4]} 34... Ra1
{[%clk 0:00:07.6]} 35. a4 {[%clk 0:00:03.6]} 35... Ra2 {[%clk 0:00:07.6]} 36.
Kg3 {[%clk 0:00:02.3]} 36... Nd3 {[%clk 0:00:07.1]} 37. Rb7+ {[%clk 0:00:02.2]}
37... Kg6 {[%clk 0:00:07.2]} 38. f3 {[%clk 0:00:02.7]} 38... Ne1 {[%clk
0:00:06.6]} 39. Kh2 {[%clk 0:00:01.4]} 39... Rxg2+ {[%clk 0:00:06.5]} 40. Kh1
{[%clk 0:00:01.9]} 40... Ra2 {[%clk 0:00:06.9]} 41. Kg1 {[%clk 0:00:01.7]} 41...
Nxf3+ {[%clk 0:00:07.1]} 42. Kf1 {[%clk 0:00:02.3]} 42... Nd2+ {[%clk
0:00:03.8]} 43. Ke1 {[%clk 0:00:02.5]} 43... Ne4 {[%clk 0:00:04.4]} 44. Rb4
{[%clk 0:00:01.8]} 44... Ng3 {[%clk 0:00:03.9]} 45. Rg4+ {[%clk 0:00:01.7]}
45... Kf5 {[%clk 0:00:04.4]} 46. Rxg3 {[%clk 0:00:02.2]} 46... Rxa4 {[%clk
0:00:04.9]} 47. Rf3+ {[%clk 0:00:02.5]} 47... Ke5 {[%clk 0:00:04.8]} 48. Kf2
{[%clk 0:00:02.8]} 48... Ra2+ {[%clk 0:00:04.9]} 49. Kg3 {[%clk 0:00:03.2]}
49... h6 {[%clk 0:00:05.1]} 50. Kg4 {[%clk 0:00:03.3]} 50... Rg2+ {[%clk
0:00:03.7]} 51. Kh5 {[%clk 0:00:03.5]} 51... Ke4 {[%clk 0:00:03.7]} 52. Rxf6
{[%clk 0:00:03]} 52... Kxe3 {[%clk 0:00:04.1]} 53. h4 {[%clk 0:00:03.5]} 53...
Ke4 {[%clk 0:00:03.1]} 54. Kxh6 {[%clk 0:00:04]} 54... Ke5 {[%clk 0:00:03.4]}
55. Rg6 {[%clk 0:00:03.8]} 55... Rh2 {[%clk 0:00:03]} 56. h5 {[%clk 0:00:04]}
56... Kf5 {[%clk 0:00:03.9]} 57. Ra6 {[%clk 0:00:02.7]} 57... Rd2 {[%clk
0:00:03.8]} 58. Kh7 {[%clk 0:00:02]} 58... Rd8 {[%clk 0:00:04.7]} 59. h6 {[%clk
0:00:02]} 59... Rd7+ {[%clk 0:00:05.6]} 60. Kg8 {[%clk 0:00:02.5]} 60... Rd8+
{[%clk 0:00:06.5]} 61. Kg7 {[%clk 0:00:02.7]} 61... Rd7+ {[%clk 0:00:06.8]} 62.
Kf8 {[%clk 0:00:03.2]} 62... Rd8+ {[%clk 0:00:05.9]} 63. Ke7 {[%clk 0:00:03.5]}
63... Rh8 {[%clk 0:00:05.9]} 64. Kf7 {[%clk 0:00:03.9]} 64... Rb8 {[%clk
0:00:05.3]} 65. Ra5+ {[%clk 0:00:02.7]} 65... Kg4 {[%clk 0:00:04.4]} 66. Re5
{[%clk 0:00:02.5]} 66... Rb7+ {[%clk 0:00:04.7]} 67. Re7 {[%clk 0:00:02.8]}
67... Rb8 {[%clk 0:00:03.7]} 68. h7 {[%clk 0:00:03.3]} 68... Kg5 {[%clk
0:00:02.8]} 69. Kg7 {[%clk 0:00:03.6]} 69... Rc8 {[%clk 0:00:01.5]} 70. h8=Q
{[%clk 0:00:03.9]} 1-0

[Event "*** Titled Tuesday Blitz"]
[Site "Chess.com"]
[Date "2020.12.29"]
[Round "1"]
[White "MPGM"]
[Black "sakkikuska"]
[Result "1-0"]
[WhiteElo "2686"]
[BlackElo "2359"]
[TimeControl "180+1"]
[EndTime "10:08:45 PST"]
[Termination "MPGM won by checkmate"]

1. d4 {[%clk 0:03:00.5]} 1... Nf6 {[%clk 0:02:59.8]} 2. c4 {[%clk 0:03:00.4]}
2... g6 {[%clk 0:03:00.5]} 3. Nc3 {[%clk 0:03:00.2]} 3... d5 {[%clk 0:03:01]} 4.
cxd5 {[%clk 0:03:00.3]} 4... Nxd5 {[%clk 0:03:01.8]} 5. e4 {[%clk 0:03:01]} 5...
Nxc3 {[%clk 0:03:02.1]} 6. bxc3 {[%clk 0:03:01.9]} 6... Bg7 {[%clk 0:03:02.3]}
7. Bc4 {[%clk 0:03:02.4]} 7... c5 {[%clk 0:03:01.9]} 8. Ne2 {[%clk 0:03:02.5]}
8... O-O {[%clk 0:02:59.7]} 9. O-O {[%clk 0:03:02.8]} 9... cxd4 {[%clk
0:03:00.1]} 10. cxd4 {[%clk 0:03:03.7]} 10... Nc6 {[%clk 0:03:00.7]} 11. Be3
{[%clk 0:03:00.9]} 11... Bd7 {[%clk 0:02:51.5]} 12. h4 {[%clk 0:02:49.4]} 12...
Rc8 {[%clk 0:02:49.9]} 13. Rc1 {[%clk 0:02:42.2]} 13... e5 {[%clk 0:02:22.4]}
14. d5 {[%clk 0:02:34.4]} 14... Na5 {[%clk 0:02:22.1]} 15. Bd3 {[%clk
0:02:30.2]} 15... Qxh4 {[%clk 0:02:17.1]} 16. Bxa7 {[%clk 0:02:17]} 16... Bh6
{[%clk 0:02:06.2]} 17. Rc5 {[%clk 0:01:57]} 17... Rxc5 {[%clk 0:01:59.8]} 18.
Bxc5 {[%clk 0:01:57.9]} 18... Rc8 {[%clk 0:02:00.5]} 19. Bb4 {[%clk 0:01:40.3]}
19... Nc4 {[%clk 0:01:57]} 20. Qb3 {[%clk 0:01:34.6]} 20... b5 {[%clk
0:01:43.3]} 21. Bc3 {[%clk 0:01:11.4]} 21... Qg4 {[%clk 0:01:23.4]} 22. Rb1
{[%clk 0:00:47.8]} 22... Nd2 {[%clk 0:00:52.7]} 23. Bxd2 {[%clk 0:00:47.5]}
23... Bxd2 {[%clk 0:00:53.6]} 24. Bxb5 {[%clk 0:00:40.7]} 24... Bxb5 {[%clk
0:00:52.1]} 25. Qxb5 {[%clk 0:00:41.6]} 25... Qxe4 {[%clk 0:00:52.2]} 26. d6
{[%clk 0:00:40]} 26... Rd8 {[%clk 0:00:51.2]} 27. d7 {[%clk 0:00:36.4]} 27...
Bg5 {[%clk 0:00:50.7]} 28. Rd1 {[%clk 0:00:34.6]} 28... Qa8 {[%clk 0:00:48.3]}
29. Qxe5 {[%clk 0:00:32.6]} 29... h6 {[%clk 0:00:47.6]} 30. Nc3 {[%clk
0:00:27.2]} 30... Qb7 {[%clk 0:00:46.1]} 31. Qd5 {[%clk 0:00:18.1]} 31... Qxd5
{[%clk 0:00:42.6]} 32. Rxd5 {[%clk 0:00:17.4]} 32... Kf8 {[%clk 0:00:42.5]} 33.
Ne4 {[%clk 0:00:13.2]} 33... Ke7 {[%clk 0:00:41.7]} 34. Nc5 {[%clk 0:00:12.3]}
34... Bf6 {[%clk 0:00:36.1]} 35. a4 {[%clk 0:00:12.4]} 35... Bb2 {[%clk
0:00:28.8]} 36. Rd3 {[%clk 0:00:09.5]} 36... Be5 {[%clk 0:00:26.4]} 37. a5
{[%clk 0:00:05.8]} 37... Bd6 {[%clk 0:00:26.1]} 38. Nb7 {[%clk 0:00:04.1]} 38...
Rxd7 {[%clk 0:00:25.6]} 39. a6 {[%clk 0:00:03.4]} 39... Bb8 {[%clk 0:00:25]} 40.
Re3+ {[%clk 0:00:03.2]} 40... Kf6 {[%clk 0:00:24.9]} 41. Rf3+ {[%clk 0:00:03]}
41... Kg7 {[%clk 0:00:25.2]} 42. Rc3 {[%clk 0:00:03.3]} 42... Ba7 {[%clk
0:00:25.4]} 43. Kh2 {[%clk 0:00:02.6]} 43... Bxf2 {[%clk 0:00:24.5]} 44. Rc8
{[%clk 0:00:03.2]} 44... Ba7 {[%clk 0:00:24.4]} 45. Ra8 {[%clk 0:00:03.3]} 45...
Bd4 {[%clk 0:00:24.4]} 46. Na5 {[%clk 0:00:03.2]} 46... Be5+ {[%clk 0:00:24.3]}
47. Kh3 {[%clk 0:00:03]} 47... Rd3+ {[%clk 0:00:24.3]} 48. Kg4 {[%clk
0:00:03.2]} 48... Rg3+ {[%clk 0:00:24.4]} 49. Kh4 {[%clk 0:00:03.7]} 49... h5
{[%clk 0:00:22.1]} 50. Nc6 {[%clk 0:00:02.3]} 50... Bf4 {[%clk 0:00:21]} 51. a7
{[%clk 0:00:01.8]} 51... Rg4+ {[%clk 0:00:20.3]} 52. Kh3 {[%clk 0:00:01.6]}
52... Rg3+ {[%clk 0:00:20.6]} 53. Kh2 {[%clk 0:00:01.6]} 53... Rc3+ {[%clk
0:00:20.6]} 54. Kg1 {[%clk 0:00:01.8]} 54... Be3+ {[%clk 0:00:19.3]} 55. Kf1
{[%clk 0:00:01.8]} 55... Rxc6 {[%clk 0:00:17]} 56. Rg8+ {[%clk 0:00:02.3]} 56...
Kxg8 {[%clk 0:00:16.6]} 57. a8=Q+ {[%clk 0:00:03.2]} 57... Kg7 {[%clk
0:00:16.9]} 58. Qxc6 {[%clk 0:00:03.8]} 58... Bg5 {[%clk 0:00:17.2]} 59. Ke2
{[%clk 0:00:04.7]} 59... Bf6 {[%clk 0:00:17.6]} 60. Kf3 {[%clk 0:00:05.4]} 60...
Bg5 {[%clk 0:00:17.4]} 61. g4 {[%clk 0:00:06.3]} 61... Bf6 {[%clk 0:00:18.1]}
62. gxh5 {[%clk 0:00:06.4]} 62... gxh5 {[%clk 0:00:19]} 63. Qe4 {[%clk
0:00:06.5]} 63... Bg5 {[%clk 0:00:19.2]} 64. Qf5 {[%clk 0:00:06.8]} 64... f6
{[%clk 0:00:18.5]} 65. Ke4 {[%clk 0:00:07.3]} 65... Kh6 {[%clk 0:00:18.4]} 66.
Kd5 {[%clk 0:00:08.2]} 66... Kg7 {[%clk 0:00:18.7]} 67. Ke6 {[%clk 0:00:09.1]}
67... Bh4 {[%clk 0:00:19.3]} 68. Qxh5 {[%clk 0:00:08.3]} 68... Bg5 {[%clk
0:00:19.5]} 69. Qf7+ {[%clk 0:00:08.4]} 69... Kh6 {[%clk 0:00:20.1]} 70. Kf5
{[%clk 0:00:08.9]} 70... Be3 {[%clk 0:00:19.9]} 71. Qg6# {[%clk 0:00:09.8]} 1-0

[Event "*** Titled Tuesday Blitz"]
[Site "Chess.com"]
[Date "2020.12.29"]
[Round "1"]
[White "Vuk2000"]
[Black "Makswolf200817"]
[Result "1-0"]
[WhiteElo "2835"]
[BlackElo "2435"]
[TimeControl "180+1"]
[EndTime "10:08:46 PST"]
[Termination "Vuk2000 won by checkmate"]

1. d4 {[%clk 0:03:00.9]} 1... d5 {[%clk 0:02:58.6]} 2. Bf4 {[%clk 0:02:58.7]}
2... Nf6 {[%clk 0:02:56.5]} 3. e3 {[%clk 0:02:58.9]} 3... c5 {[%clk 0:02:55.9]}
4. c3 {[%clk 0:02:58.1]} 4... Nc6 {[%clk 0:02:54.7]} 5. Nd2 {[%clk 0:02:58.7]}
5... Qb6 {[%clk 0:02:49.9]} 6. Qb3 {[%clk 0:02:53.7]} 6... c4 {[%clk 0:02:49.4]}
7. Qxb6 {[%clk 0:02:53.7]} 7... axb6 {[%clk 0:02:49]} 8. a3 {[%clk 0:02:51.6]}
8... b5 {[%clk 0:02:48.8]} 9. Rc1 {[%clk 0:02:51]} 9... Bf5 {[%clk 0:02:46.3]}
10. h3 {[%clk 0:02:40.3]} 10... h6 {[%clk 0:02:45.6]} 11. g4 {[%clk 0:02:34.7]}
11... Bg6 {[%clk 0:02:43.8]} 12. Bg2 {[%clk 0:02:34.1]} 12... e6 {[%clk
0:02:43.7]} 13. Ne2 {[%clk 0:02:30]} 13... Nd7 {[%clk 0:02:29.8]} 14. e4 {[%clk
0:02:27.6]} 14... Nb6 {[%clk 0:02:29.2]} 15. Be3 {[%clk 0:02:05.6]} 15... f6
{[%clk 0:02:14]} 16. f4 {[%clk 0:01:56.6]} 16... dxe4 {[%clk 0:02:08.3]} 17.
Bxe4 {[%clk 0:01:53.2]} 17... Bxe4 {[%clk 0:02:06]} 18. Nxe4 {[%clk 0:01:54.1]}
18... Ne7 {[%clk 0:02:00.1]} 19. Nd6+ {[%clk 0:01:44.2]} 19... Kd7 {[%clk
0:01:56]} 20. Nxb7 {[%clk 0:01:44.5]} 20... Ned5 {[%clk 0:01:54.5]} 21. Bf2
{[%clk 0:01:42.9]} 21... Na4 {[%clk 0:01:53]} 22. Rc2 {[%clk 0:01:34.2]} 22...
Kc6 {[%clk 0:01:51.8]} 23. Nc5 {[%clk 0:01:31.5]} 23... Nxc5 {[%clk 0:01:48.8]}
24. dxc5 {[%clk 0:01:31.6]} 24... Bxc5 {[%clk 0:01:49.7]} 25. O-O {[%clk
0:01:07.1]} 25... Rhe8 {[%clk 0:01:32.5]} 26. Rd2 {[%clk 0:00:57.7]} 26... Rad8
{[%clk 0:01:22.8]} 27. Bxc5 {[%clk 0:00:55.7]} 27... Kxc5 {[%clk 0:01:23.1]} 28.
Nd4 {[%clk 0:00:56.1]} 28... Nc7 {[%clk 0:01:02.6]} 29. Rfd1 {[%clk 0:00:54.1]}
29... Kb6 {[%clk 0:00:59.4]} 30. Kf2 {[%clk 0:00:51.9]} 30... e5 {[%clk
0:00:57.1]} 31. Nf5 {[%clk 0:00:38.3]} 31... Rxd2+ {[%clk 0:00:39.5]} 32. Rxd2
{[%clk 0:00:39.2]} 32... Ne6 {[%clk 0:00:31.4]} 33. fxe5 {[%clk 0:00:35.3]}
33... fxe5 {[%clk 0:00:32.3]} 34. Rd7 {[%clk 0:00:29.1]} 34... g6 {[%clk
0:00:29]} 35. Nxh6 {[%clk 0:00:28.2]} 35... Nc5 {[%clk 0:00:24.1]} 36. Rd6+
{[%clk 0:00:26.8]} 36... Kc7 {[%clk 0:00:24.4]} 37. Rxg6 {[%clk 0:00:27]} 37...
Nd3+ {[%clk 0:00:25.1]} 38. Ke3 {[%clk 0:00:26.4]} 38... Nxb2 {[%clk 0:00:25.5]}
39. h4 {[%clk 0:00:22.6]} 39... e4 {[%clk 0:00:25]} 40. Nf5 {[%clk 0:00:21.1]}
40... Nd1+ {[%clk 0:00:24.9]} 41. Kd2 {[%clk 0:00:21.2]} 41... Rd8+ {[%clk
0:00:24.3]} 42. Kc2 {[%clk 0:00:17.7]} 42... e3 {[%clk 0:00:23.3]} 43. Nd4
{[%clk 0:00:18.5]} 43... Nf2 {[%clk 0:00:22]} 44. Ne6+ {[%clk 0:00:15.7]} 44...
Kd7 {[%clk 0:00:20.3]} 45. Nxd8 {[%clk 0:00:16]} 45... Kxd8 {[%clk 0:00:21.2]}
46. g5 {[%clk 0:00:13.4]} 46... Ke7 {[%clk 0:00:20.4]} 47. Rg7+ {[%clk
0:00:08.7]} 47... Ke6 {[%clk 0:00:19.9]} 48. Rg8 {[%clk 0:00:09.2]} 48... Kf7
{[%clk 0:00:19.1]} 49. Rb8 {[%clk 0:00:08]} 49... Ne4 {[%clk 0:00:18.9]} 50. Kd1
{[%clk 0:00:07.1]} 50... Nxc3+ {[%clk 0:00:17.2]} 51. Ke1 {[%clk 0:00:07.5]}
51... Kg6 {[%clk 0:00:17.1]} 52. Rb6+ {[%clk 0:00:05.4]} 52... Kh5 {[%clk
0:00:17.2]} 53. g6 {[%clk 0:00:06]} 53... Kh6 {[%clk 0:00:16.9]} 54. h5 {[%clk
0:00:06.6]} 54... Nb1 {[%clk 0:00:14.9]} 55. Rxb5 {[%clk 0:00:06.5]} 55... Nxa3
{[%clk 0:00:13.7]} 56. Rc5 {[%clk 0:00:06.8]} 56... Nc2+ {[%clk 0:00:12.2]} 57.
Ke2 {[%clk 0:00:07]} 57... Nd4+ {[%clk 0:00:11.1]} 58. Kxe3 {[%clk 0:00:06]}
58... Ne6 {[%clk 0:00:12]} 59. Re5 {[%clk 0:00:05.7]} 59... Ng7 {[%clk
0:00:11.3]} 60. Kd4 {[%clk 0:00:05.9]} 60... c3 {[%clk 0:00:05.1]} 61. Kxc3
{[%clk 0:00:06]} 61... Nxh5 {[%clk 0:00:06]} 62. Rxh5+ {[%clk 0:00:06.1]} 62...
Kxg6 {[%clk 0:00:06.7]} 63. Rb5 {[%clk 0:00:06.3]} 63... Kf6 {[%clk 0:00:07.6]}
64. Kc4 {[%clk 0:00:07.2]} 64... Ke6 {[%clk 0:00:07.5]} 65. Rd5 {[%clk
0:00:08.1]} 65... Ke7 {[%clk 0:00:08.2]} 66. Kd4 {[%clk 0:00:09]} 66... Kf6
{[%clk 0:00:09.1]} 67. Ke4 {[%clk 0:00:09.9]} 67... Kf7 {[%clk 0:00:09.5]} 68.
Rd4 {[%clk 0:00:10.8]} 68... Kf6 {[%clk 0:00:09.5]} 69. Kf4 {[%clk 0:00:11.7]}
69... Kg6 {[%clk 0:00:10.4]} 70. Rd6+ {[%clk 0:00:12]} 70... Kf7 {[%clk
0:00:11.3]} 71. Kf5 {[%clk 0:00:12.8]} 71... Kg7 {[%clk 0:00:12.2]} 72. Rd5
{[%clk 0:00:13.7]} 72... Kf7 {[%clk 0:00:13.1]} 73. Rd7+ {[%clk 0:00:14.1]}
73... Ke8 {[%clk 0:00:14]} 74. Ke6 {[%clk 0:00:14.8]} 74... Kf8 {[%clk
0:00:13.9]} 75. Kf6 {[%clk 0:00:15.1]} 75... Ke8 {[%clk 0:00:14.8]} 76. Rd6
{[%clk 0:00:15.5]} 76... Kf8 {[%clk 0:00:14.7]} 77. Rd8# {[%clk 0:00:16.2]} 1-0

[Event "*** Titled Tuesday Blitz"]
[Site "Chess.com"]
[Date "2020.12.29"]
[Round "1"]
[White "StockholmMissile"]
[Black "MomchilPetkov"]
[Result "1-0"]
[WhiteElo "2417"]
[BlackElo "2736"]
[TimeControl "180+1"]
[EndTime "10:08:46 PST"]
[Termination "StockholmMissile won by checkmate"]

1. e4 {[%clk 0:03:00.3]} 1... g6 {[%clk 0:02:59.7]} 2. d4 {[%clk 0:02:59.8]}
2... Bg7 {[%clk 0:02:53.7]} 3. Nf3 {[%clk 0:02:59.4]} 3... d6 {[%clk 0:02:52.5]}
4. Nbd2 {[%clk 0:02:58.7]} 4... Nf6 {[%clk 0:02:52.3]} 5. Bb5+ {[%clk
0:02:58.3]} 5... c6 {[%clk 0:02:51.1]} 6. Bd3 {[%clk 0:02:58.1]} 6... O-O {[%clk
0:02:51.5]} 7. O-O {[%clk 0:02:55.5]} 7... Nbd7 {[%clk 0:02:51.7]} 8. c3 {[%clk
0:02:54.2]} 8... e5 {[%clk 0:02:51.7]} 9. a4 {[%clk 0:02:52.7]} 9... a5 {[%clk
0:02:50.4]} 10. h3 {[%clk 0:02:47.7]} 10... Re8 {[%clk 0:02:50.1]} 11. Re1
{[%clk 0:02:47.5]} 11... Nf8 {[%clk 0:02:47.1]} 12. Nc4 {[%clk 0:02:45.2]} 12...
exd4 {[%clk 0:02:36.7]} 13. Nxd4 {[%clk 0:02:35.7]} 13... d5 {[%clk 0:02:34.2]}
14. exd5 {[%clk 0:02:33.1]} 14... Rxe1+ {[%clk 0:02:34.2]} 15. Qxe1 {[%clk
0:02:34]} 15... Nxd5 {[%clk 0:02:34.1]} 16. Ne3 {[%clk 0:02:07.9]} 16... Nf4
{[%clk 0:02:16]} 17. Bf1 {[%clk 0:01:58.2]} 17... N8e6 {[%clk 0:02:11.6]} 18.
Nxe6 {[%clk 0:01:55.6]} 18... Bxe6 {[%clk 0:02:12.5]} 19. Ng4 {[%clk 0:01:53.6]}
19... Nd3 {[%clk 0:02:07.1]} 20. Bxd3 {[%clk 0:01:51.6]} 20... Qxd3 {[%clk
0:02:08]} 21. Bg5 {[%clk 0:01:43.4]} 21... h5 {[%clk 0:01:30.7]} 22. Ne3 {[%clk
0:01:26.2]} 22... Qe4 {[%clk 0:01:26.5]} 23. f3 {[%clk 0:00:54.2]} 23... Qe5
{[%clk 0:01:22.7]} 24. Bh4 {[%clk 0:00:52.2]} 24... Re8 {[%clk 0:01:20.3]} 25.
Bf2 {[%clk 0:00:47]} 25... Bb3 {[%clk 0:01:17.6]} 26. Qf1 {[%clk 0:00:42]} 26...
Qf4 {[%clk 0:01:11.7]} 27. Ra3 {[%clk 0:00:30.9]} 27... Be6 {[%clk 0:00:54.3]}
28. Ra1 {[%clk 0:00:28.1]} 28... Bb3 {[%clk 0:00:30]} 29. Ra3 {[%clk 0:00:27.6]}
29... Be6 {[%clk 0:00:30]} 30. Ra1 {[%clk 0:00:27.6]} 30... Rd8 {[%clk
0:00:30.6]} 31. Nc2 {[%clk 0:00:25.2]} 31... Bc4 {[%clk 0:00:28.2]} 32. Qe1
{[%clk 0:00:20.9]} 32... Qg5 {[%clk 0:00:17.8]} 33. Nd4 {[%clk 0:00:19.9]} 33...
Bd5 {[%clk 0:00:16.6]} 34. Bh4 {[%clk 0:00:14.2]} 34... Qf4 {[%clk 0:00:11]} 35.
Bxd8 {[%clk 0:00:13.5]} 35... Bxd4+ {[%clk 0:00:10.3]} 36. cxd4 {[%clk
0:00:13.7]} 36... Qxd4+ {[%clk 0:00:11.2]} 37. Kh1 {[%clk 0:00:14.1]} 37... Be6
{[%clk 0:00:11.1]} 38. Bh4 {[%clk 0:00:12.1]} 38... Bb3 {[%clk 0:00:07.9]} 39.
Qf2 {[%clk 0:00:09.7]} 39... Qb4 {[%clk 0:00:06.3]} 40. Re1 {[%clk 0:00:09.9]}
40... Be6 {[%clk 0:00:06]} 41. Rd1 {[%clk 0:00:09.1]} 41... Kg7 {[%clk
0:00:06.3]} 42. Qd4+ {[%clk 0:00:08.7]} 42... Qxd4 {[%clk 0:00:06.7]} 43. Rxd4
{[%clk 0:00:09.6]} 43... f6 {[%clk 0:00:07.2]} 44. Bf2 {[%clk 0:00:09.8]} 44...
Bb3 {[%clk 0:00:06.9]} 45. Rd7+ {[%clk 0:00:09.6]} 45... Kh6 {[%clk 0:00:07.4]}
46. Rxb7 {[%clk 0:00:10.5]} 46... Bxa4 {[%clk 0:00:07.3]} 47. Ra7 {[%clk
0:00:11]} 47... Bb5 {[%clk 0:00:07.7]} 48. Rxa5 {[%clk 0:00:11.4]} 48... Bd3
{[%clk 0:00:08.3]} 49. Ra7 {[%clk 0:00:11.7]} 49... Bb5 {[%clk 0:00:08.4]} 50.
Bd4 {[%clk 0:00:11.7]} 50... g5 {[%clk 0:00:07.7]} 51. Bxf6 {[%clk 0:00:11.6]}
51... Kg6 {[%clk 0:00:08.6]} 52. Bd4 {[%clk 0:00:11.8]} 52... Kf5 {[%clk
0:00:08.9]} 53. Be3 {[%clk 0:00:12.3]} 53... g4 {[%clk 0:00:09]} 54. fxg4+
{[%clk 0:00:12.1]} 54... hxg4 {[%clk 0:00:09.9]} 55. h4 {[%clk 0:00:13]} 55...
g3 {[%clk 0:00:09.9]} 56. Bc1 {[%clk 0:00:12.3]} 56... Bd3 {[%clk 0:00:10.5]}
57. h5 {[%clk 0:00:11.7]} 57... Kg4 {[%clk 0:00:07.8]} 58. h6 {[%clk 0:00:10.4]}
58... c5 {[%clk 0:00:08]} 59. h7 {[%clk 0:00:10.5]} 59... Bxh7 {[%clk
0:00:08.5]} 60. Rxh7 {[%clk 0:00:10.9]} 60... c4 {[%clk 0:00:09.4]} 61. Rg7+
{[%clk 0:00:10.4]} 61... Kh4 {[%clk 0:00:10.3]} 62. Bg5+ {[%clk 0:00:09.2]}
62... Kg4 {[%clk 0:00:11.2]} 63. Be7+ {[%clk 0:00:08.9]} 63... Kf4 {[%clk
0:00:10.8]} 64. Bd6+ {[%clk 0:00:09.2]} 64... Ke4 {[%clk 0:00:11.3]} 65. Bxg3
{[%clk 0:00:09.8]} 65... c3 {[%clk 0:00:12]} 66. bxc3 {[%clk 0:00:10.1]} 66...
Kd3 {[%clk 0:00:12]} 67. Kh2 {[%clk 0:00:09.8]} 67... Ke2 {[%clk 0:00:12.9]} 68.
Bf4 {[%clk 0:00:10.2]} 68... Kf1 {[%clk 0:00:13.3]} 69. g4 {[%clk 0:00:10.5]}
69... Kf2 {[%clk 0:00:13.6]} 70. g5 {[%clk 0:00:11.4]} 70... Kf3 {[%clk
0:00:14.4]} 71. g6 {[%clk 0:00:12.3]} 71... Ke4 {[%clk 0:00:15.1]} 72. Rg8
{[%clk 0:00:12.8]} 72... Kf5 {[%clk 0:00:15.9]} 73. g7 {[%clk 0:00:13.4]} 73...
Kf6 {[%clk 0:00:16.8]} 74. Be5+ {[%clk 0:00:13.4]} 74... Kf7 {[%clk 0:00:17]}
75. Rf8+ {[%clk 0:00:13.5]} 75... Ke6 {[%clk 0:00:17.9]} 76. g8=Q+ {[%clk
0:00:13.8]} 76... Kxe5 {[%clk 0:00:18.2]} 77. Re8+ {[%clk 0:00:13.8]} 77... Kd6
{[%clk 0:00:19.1]} 78. Qe6+ {[%clk 0:00:13.8]} 78... Kc5 {[%clk 0:00:19.8]} 79.
Rc8+ {[%clk 0:00:13.9]} 79... Kb5 {[%clk 0:00:20.7]} 80. Qb3+ {[%clk 0:00:13.9]}
80... Ka6 {[%clk 0:00:20.5]} 81. Ra8# {[%clk 0:00:14.5]} 1-0